[Event "Early-Titled-Tuesday-Blitz-April-16-2024"]
[Site "Chess.com"]
[Date "2024.04.16"]
[Round "11"]
[White "Kotofeyca"]
[Black "maracayo"]
[Result "1/2-1/2"]
[WhiteElo "2474"]
[BlackElo "2365"]
[TimeControl "180+1"]
[EndTime "10:13:17 PDT"]
[Termination "Game drawn by stalemate"]

1. d4 {[%clk 0:03:00.9]} 1... d6 {[%clk 0:02:59.9]} 2. c4 {[%clk 0:02:59.4]}
2... Nf6 {[%clk 0:03:00.8]} 3. Nc3 {[%clk 0:02:59.5]} 3... e5 {[%clk 0:03:00.9]}
4. Nf3 {[%clk 0:02:59.4]} 4... Nbd7 {[%clk 0:03:00.5]} 5. e4 {[%clk 0:02:58.9]}
5... Be7 {[%clk 0:03:00.3]} 6. Be2 {[%clk 0:02:57.9]} 6... O-O {[%clk
0:03:00.2]} 7. O-O {[%clk 0:02:58.1]} 7... exd4 {[%clk 0:03:00.1]} 8. Nxd4
{[%clk 0:02:58]} 8... Ne5 {[%clk 0:02:59.6]} 9. h3 {[%clk 0:02:50.7]} 9... Re8
{[%clk 0:02:58.8]} 10. Be3 {[%clk 0:02:49.6]} 10... c6 {[%clk 0:02:57.9]} 11.
Qd2 {[%clk 0:02:48.5]} 11... h6 {[%clk 0:02:57.1]} 12. Rad1 {[%clk 0:02:46.4]}
12... Bf8 {[%clk 0:02:56.4]} 13. b3 {[%clk 0:02:45.3]} 13... Qc7 {[%clk
0:02:55.9]} 14. f4 {[%clk 0:02:34.4]} 14... Ng6 {[%clk 0:02:55]} 15. Bf3 {[%clk
0:02:32.7]} 15... a6 {[%clk 0:02:54.4]} 16. g4 {[%clk 0:02:15.6]} 16... Bd7
{[%clk 0:02:52.3]} 17. Nf5 {[%clk 0:02:10.1]} 17... Bxf5 {[%clk 0:02:34.6]} 18.
gxf5 {[%clk 0:02:09.4]} 18... Ne7 {[%clk 0:02:21.1]} 19. Bd4 {[%clk 0:01:57.9]}
19... Nd7 {[%clk 0:01:37]} 20. Kh2 {[%clk 0:01:50.5]} 20... Kh8 {[%clk
0:01:28.3]} 21. Rg1 {[%clk 0:01:50.5]} 21... Ng8 {[%clk 0:01:27]} 22. Rde1
{[%clk 0:01:40.6]} 22... b5 {[%clk 0:01:20.3]} 23. Rg3 {[%clk 0:01:18.5]} 23...
b4 {[%clk 0:01:14.9]} 24. Nd1 {[%clk 0:01:10.9]} 24... Ndf6 {[%clk 0:01:03.9]}
25. Nf2 {[%clk 0:01:05.8]} 25... Rad8 {[%clk 0:00:57.1]} 26. Qe3 {[%clk
0:01:01.5]} 26... c5 {[%clk 0:00:45.6]} 27. Bb2 {[%clk 0:01:01.6]} 27... d5
{[%clk 0:00:45.6]} 28. e5 {[%clk 0:00:55]} 28... d4 {[%clk 0:00:43.1]} 29. Qe2
{[%clk 0:00:50.5]} 29... Nh7 {[%clk 0:00:41.2]} 30. Reg1 {[%clk 0:00:46.3]}
30... f6 {[%clk 0:00:40.9]} 31. Nd3 {[%clk 0:00:43.1]} 31... a5 {[%clk
0:00:26.8]} 32. Bc1 {[%clk 0:00:42.6]} 32... a4 {[%clk 0:00:26.1]} 33. Bd5
{[%clk 0:00:40.5]} 33... axb3 {[%clk 0:00:24]} 34. axb3 {[%clk 0:00:40.1]} 34...
Rxd5 {[%clk 0:00:21.9]} 35. cxd5 {[%clk 0:00:39.4]} 35... c4 {[%clk 0:00:22.8]}
36. bxc4 {[%clk 0:00:38.8]} 36... Qxc4 {[%clk 0:00:23.1]} 37. Qg2 {[%clk
0:00:32.4]} 37... Re7 {[%clk 0:00:12.6]} 38. d6 {[%clk 0:00:31.6]} 38... Ra7
{[%clk 0:00:11.5]} 39. e6 {[%clk 0:00:27.8]} 39... Ra2 {[%clk 0:00:10.5]} 40.
Bb2 {[%clk 0:00:25.7]} 40... Ng5 {[%clk 0:00:09.8]} 41. fxg5 {[%clk 0:00:24.9]}
41... fxg5 {[%clk 0:00:10.3]} 42. e7 {[%clk 0:00:23.9]} 42... Nxe7 {[%clk
0:00:10]} 43. dxe7 {[%clk 0:00:24.8]} 43... Bxe7 {[%clk 0:00:10.5]} 44. Kh1
{[%clk 0:00:22.8]} 44... Bd6 {[%clk 0:00:10.4]} 45. Rf3 {[%clk 0:00:19.7]} 45...
b3 {[%clk 0:00:10.3]} 46. f6 {[%clk 0:00:18.2]} 46... gxf6 {[%clk 0:00:10.9]}
47. Qg4 {[%clk 0:00:17.2]} 47... Be5 {[%clk 0:00:10.1]} 48. Nxe5 {[%clk
0:00:14.4]} 48... Qd5 {[%clk 0:00:10.3]} 49. Ng6+ {[%clk 0:00:12.8]} 49... Kg7
{[%clk 0:00:11]} 50. Qf5 {[%clk 0:00:12.9]} 50... Qxf5 {[%clk 0:00:10.3]} 51.
Rxf5 {[%clk 0:00:12.4]} 51... Kxg6 {[%clk 0:00:11.2]} 52. Rgf1 {[%clk
0:00:10.2]} 52... Rxb2 {[%clk 0:00:10.4]} 53. Rxf6+ {[%clk 0:00:11.1]} 53... Kh5
{[%clk 0:00:10.4]} 54. Rb6 {[%clk 0:00:11.1]} 54... d3 {[%clk 0:00:09.3]} 55.
Rd1 {[%clk 0:00:11.2]} 55... Rc2 {[%clk 0:00:06.6]} 56. Rxd3 {[%clk 0:00:10.4]}
56... b2 {[%clk 0:00:06.5]} 57. Rdb3 {[%clk 0:00:10.7]} 57... Rc1+ {[%clk
0:00:06.9]} 58. Kg2 {[%clk 0:00:10.6]} 58... Rc2+ {[%clk 0:00:07.8]} 59. Kg3
{[%clk 0:00:10.9]} 59... b1=Q {[%clk 0:00:06.6]} 60. Rxb1 {[%clk 0:00:10.8]}
60... Rc3+ {[%clk 0:00:07.5]} 61. Kg2 {[%clk 0:00:11.4]} 61... Rc2+ {[%clk
0:00:07]} 62. Kg1 {[%clk 0:00:11.8]} 62... Kh4 {[%clk 0:00:06]} 63. R1b3 {[%clk
0:00:12.4]} 63... h5 {[%clk 0:00:05.4]} 64. R6b4+ {[%clk 0:00:13]} 64... g4
{[%clk 0:00:04.4]} 65. hxg4 {[%clk 0:00:13.3]} 65... hxg4 {[%clk 0:00:05.3]} 66.
Ra3 {[%clk 0:00:12.9]} 66... Rc1+ {[%clk 0:00:05.1]} 67. Kg2 {[%clk 0:00:13.2]}
67... Rc2+ {[%clk 0:00:06]} 68. Kf1 {[%clk 0:00:13.5]} 68... Rc1+ {[%clk
0:00:06.9]} 69. Kf2 {[%clk 0:00:13.8]} 69... Rc2+ {[%clk 0:00:07.8]} 70. Ke1
{[%clk 0:00:14.1]} 70... Rc1+ {[%clk 0:00:08.7]} 71. Ke2 {[%clk 0:00:14.5]}
71... Rh1 {[%clk 0:00:09.5]} 72. Raa4 {[%clk 0:00:13.8]} 72... Rh2+ {[%clk
0:00:10.4]} 73. Kf1 {[%clk 0:00:13.9]} 73... Kh3 {[%clk 0:00:05.9]} 74. Rxg4
{[%clk 0:00:12.7]} 74... Rg2 {[%clk 0:00:03.8]} 75. Rxg2 {[%clk 0:00:12.2]}
1/2-1/2

[Event "Early-Titled-Tuesday-Blitz-April-16-2024"]
[Site "Chess.com"]
[Date "2024.04.16"]
[Round "11"]
[White "RedFirePanda"]
[Black "littlepinkyboy"]
[Result "1/2-1/2"]
[WhiteElo "2484"]
[BlackElo "2653"]
[TimeControl "180+1"]
[EndTime "10:13:19 PDT"]
[Termination "Game drawn by repetition"]

1. d4 {[%clk 0:03:00.9]} 1... d5 {[%clk 0:02:59.5]} 2. Bf4 {[%clk 0:02:59.5]}
2... Nf6 {[%clk 0:02:59.4]} 3. e3 {[%clk 0:02:58]} 3... e6 {[%clk 0:02:59.7]} 4.
Nf3 {[%clk 0:02:57.3]} 4... c5 {[%clk 0:03:00]} 5. c3 {[%clk 0:02:56.3]} 5...
Nc6 {[%clk 0:03:00.3]} 6. Nbd2 {[%clk 0:02:55.8]} 6... Bd6 {[%clk 0:03:00.2]} 7.
Bg3 {[%clk 0:02:55.1]} 7... O-O {[%clk 0:02:59.1]} 8. Bd3 {[%clk 0:02:53.2]}
8... b6 {[%clk 0:02:59.7]} 9. O-O {[%clk 0:02:51.5]} 9... Bb7 {[%clk 0:02:59.8]}
10. Re1 {[%clk 0:02:51.4]} 10... Ne7 {[%clk 0:02:55.3]} 11. Qe2 {[%clk 0:02:49]}
11... Nf5 {[%clk 0:02:46.9]} 12. dxc5 {[%clk 0:02:35.9]} 12... bxc5 {[%clk
0:02:36.6]} 13. e4 {[%clk 0:02:35.7]} 13... dxe4 {[%clk 0:02:29.8]} 14. Nxe4
{[%clk 0:02:36.6]} 14... Nxe4 {[%clk 0:02:29.2]} 15. Bxe4 {[%clk 0:02:37.5]}
15... Bxe4 {[%clk 0:02:29.6]} 16. Qxe4 {[%clk 0:02:38.4]} 16... Bxg3 {[%clk
0:02:23.9]} 17. hxg3 {[%clk 0:02:35.2]} 17... Rb8 {[%clk 0:02:23.7]} 18. b3
{[%clk 0:02:28.1]} 18... Qc7 {[%clk 0:02:11.4]} 19. c4 {[%clk 0:02:09.2]} 19...
Rbd8 {[%clk 0:02:03.2]} 20. Red1 {[%clk 0:02:05.5]} 20... Qa5 {[%clk 0:01:50.1]}
21. Qc2 {[%clk 0:01:46.7]} 21... Rxd1+ {[%clk 0:01:42]} 22. Rxd1 {[%clk
0:01:47.6]} 22... Rd8 {[%clk 0:01:42.5]} 23. Rxd8+ {[%clk 0:01:43.7]} 23... Qxd8
{[%clk 0:01:43.4]} 24. Qd2 {[%clk 0:01:44.3]} 24... Qxd2 {[%clk 0:01:33.7]} 25.
Nxd2 {[%clk 0:01:45.2]} 25... Nd6 {[%clk 0:01:34.3]} 26. Kf1 {[%clk 0:01:42.5]}
26... e5 {[%clk 0:01:30.3]} 27. Ke2 {[%clk 0:01:39.1]} 27... f5 {[%clk
0:01:24.3]} 28. Nf3 {[%clk 0:01:35.8]} 28... Nf7 {[%clk 0:01:22.6]} 29. Ne1
{[%clk 0:01:34.8]} 29... e4 {[%clk 0:01:18.5]} 30. f3 {[%clk 0:01:15.3]} 30...
Nd6 {[%clk 0:01:18.1]} 31. Nc2 {[%clk 0:01:12.3]} 31... Kf7 {[%clk 0:01:14.5]}
32. Ne3 {[%clk 0:01:11.8]} 32... Ke6 {[%clk 0:01:12]} 33. Nd5 {[%clk 0:01:10.1]}
33... g5 {[%clk 0:01:04.4]} 34. Ke3 {[%clk 0:01:06.8]} 34... exf3 {[%clk
0:00:49.3]} 35. gxf3 {[%clk 0:01:06.2]} 35... h5 {[%clk 0:00:49.9]} 36. Nc7+
{[%clk 0:00:42.8]} 36... Kd7 {[%clk 0:00:46.5]} 37. Nd5 {[%clk 0:00:42.5]} 37...
Ke6 {[%clk 0:00:39]} 38. Nc7+ {[%clk 0:00:42.3]} 38... Ke5 {[%clk 0:00:39.7]}
39. Nd5 {[%clk 0:00:13.1]} 39... f4+ {[%clk 0:00:29.3]} 40. gxf4+ {[%clk
0:00:06]} 40... gxf4+ {[%clk 0:00:30.2]} 41. Kf2 {[%clk 0:00:03.3]} 41... Nf5
{[%clk 0:00:31.1]} 42. Nc7 {[%clk 0:00:02.5]} 42... Nd4 {[%clk 0:00:28.2]} 43.
Na6 {[%clk 0:00:02]} 43... Kd6 {[%clk 0:00:24.9]} 44. b4 {[%clk 0:00:02.6]}
44... Ne6 {[%clk 0:00:08.5]} 45. bxc5+ {[%clk 0:00:02]} 45... Nxc5 {[%clk
0:00:08.2]} 46. Nb4 {[%clk 0:00:02.9]} 46... a5 {[%clk 0:00:08.7]} 47. Nd5
{[%clk 0:00:03.3]} 47... Nd3+ {[%clk 0:00:08.6]} 48. Kg2 {[%clk 0:00:03.1]}
48... Kc5 {[%clk 0:00:08]} 49. Nf6 {[%clk 0:00:02.7]} 49... h4 {[%clk
0:00:06.2]} 50. Kh3 {[%clk 0:00:02.3]} 50... Kxc4 {[%clk 0:00:06.3]} 51. Kxh4
{[%clk 0:00:02.8]} 51... Ne5 {[%clk 0:00:05.8]} 52. Kg5 {[%clk 0:00:02.2]} 52...
Nxf3+ {[%clk 0:00:06.5]} 53. Kxf4 {[%clk 0:00:02.8]} 53... Nd4 {[%clk
0:00:07.4]} 54. Ke3 {[%clk 0:00:03.1]} 54... Nc2+ {[%clk 0:00:04.7]} 55. Kd2
{[%clk 0:00:02.9]} 55... Nb4 {[%clk 0:00:05.6]} 56. Kc1 {[%clk 0:00:01.7]} 56...
Nxa2+ {[%clk 0:00:05.6]} 57. Kb2 {[%clk 0:00:02.6]} 57... Nc3 {[%clk 0:00:06.3]}
58. Ka1 {[%clk 0:00:03.5]} 58... a4 {[%clk 0:00:05.5]} 59. Nd7 {[%clk
0:00:04.1]} 59... Nb5 {[%clk 0:00:05.9]} 60. Ne5+ {[%clk 0:00:04.3]} 60... Kb3
{[%clk 0:00:06.5]} 61. Nd3 {[%clk 0:00:03.7]} 61... a3 {[%clk 0:00:04.4]} 62.
Nc1+ {[%clk 0:00:03.8]} 62... Ka4 {[%clk 0:00:04.8]} 63. Ne2 {[%clk 0:00:02.4]}
63... Kb4 {[%clk 0:00:04.2]} 64. Ka2 {[%clk 0:00:02.1]} 64... Ka4 {[%clk
0:00:03.1]} 65. Ka1 {[%clk 0:00:02]} 65... Kb3 {[%clk 0:00:03.7]} 66. Nc1+
{[%clk 0:00:02.5]} 66... Kc2 {[%clk 0:00:03]} 67. Ne2 {[%clk 0:00:03]} 67... Kb3
{[%clk 0:00:01.9]} 68. Nc1+ {[%clk 0:00:03]} 1/2-1/2

[Event "Early-Titled-Tuesday-Blitz-April-16-2024"]
[Site "Chess.com"]
[Date "2024.04.16"]
[Round "11"]
[White "BardArtem"]
[Black "Mikhail_Golubev"]
[Result "1-0"]
[WhiteElo "2834"]
[BlackElo "2590"]
[TimeControl "180+1"]
[EndTime "10:13:22 PDT"]
[Termination "BardArtem won on time"]

1. e4 {[%clk 0:03:00.9]} 1... c5 {[%clk 0:03:00.3]} 2. c3 {[%clk 0:02:56.5]}
2... Nf6 {[%clk 0:02:52.9]} 3. e5 {[%clk 0:02:56.6]} 3... Nd5 {[%clk 0:02:53.6]}
4. Nf3 {[%clk 0:02:56.7]} 4... Nc6 {[%clk 0:02:53.1]} 5. Bc4 {[%clk 0:02:56.5]}
5... Nb6 {[%clk 0:02:53.1]} 6. Bb3 {[%clk 0:02:56.3]} 6... d6 {[%clk 0:02:46.7]}
7. exd6 {[%clk 0:02:54.8]} 7... c4 {[%clk 0:02:47.1]} 8. Bc2 {[%clk 0:02:54.2]}
8... Qxd6 {[%clk 0:02:47.3]} 9. O-O {[%clk 0:02:49.5]} 9... Bg4 {[%clk 0:02:46]}
10. h3 {[%clk 0:02:45.4]} 10... Bh5 {[%clk 0:02:45.1]} 11. b3 {[%clk 0:02:43.4]}
11... e5 {[%clk 0:02:26.5]} 12. Re1 {[%clk 0:02:40.3]} 12... Be7 {[%clk
0:02:21.5]} 13. Na3 {[%clk 0:02:36.8]} 13... cxb3 {[%clk 0:02:15.2]} 14. axb3
{[%clk 0:02:37.7]} 14... O-O {[%clk 0:02:14.6]} 15. Nc4 {[%clk 0:02:37.1]} 15...
Nxc4 {[%clk 0:02:10.8]} 16. bxc4 {[%clk 0:02:38]} 16... f5 {[%clk 0:02:07]} 17.
d3 {[%clk 0:02:24.6]} 17... Rad8 {[%clk 0:01:55.9]} 18. Qe2 {[%clk 0:02:19.9]}
18... Kh8 {[%clk 0:01:35.8]} 19. Qe3 {[%clk 0:02:07.2]} 19... f4 {[%clk
0:01:32.2]} 20. Qe4 {[%clk 0:02:05.6]} 20... Bg6 {[%clk 0:01:29.8]} 21. Qe2
{[%clk 0:02:02.6]} 21... Bxd3 {[%clk 0:01:26.9]} 22. Bxd3 {[%clk 0:02:03.5]}
22... Qxd3 {[%clk 0:01:26.8]} 23. Qxd3 {[%clk 0:02:00.5]} 23... Rxd3 {[%clk
0:01:27.3]} 24. Nxe5 {[%clk 0:02:01.4]} 24... Nxe5 {[%clk 0:01:24.7]} 25. Rxe5
{[%clk 0:02:02.3]} 25... Rd1+ {[%clk 0:01:14]} 26. Kh2 {[%clk 0:02:02.2]} 26...
Bh4 {[%clk 0:00:35.9]} 27. Re2 {[%clk 0:01:36.5]} 27... Kg8 {[%clk 0:00:36]} 28.
Bb2 {[%clk 0:01:30.5]} 28... Rxa1 {[%clk 0:00:34.2]} 29. Bxa1 {[%clk 0:01:31.4]}
29... f3 {[%clk 0:00:32.7]} 30. gxf3 {[%clk 0:01:32.3]} 30... Rxf3 {[%clk
0:00:32.4]} 31. Kg2 {[%clk 0:01:33]} 31... Rd3 {[%clk 0:00:25.5]} 32. Re8+
{[%clk 0:01:31.6]} 32... Kf7 {[%clk 0:00:25.4]} 33. Rb8 {[%clk 0:01:32.3]} 33...
Rd7 {[%clk 0:00:22.6]} 34. Bb2 {[%clk 0:01:28.1]} 34... Be7 {[%clk 0:00:21.6]}
35. Bc1 {[%clk 0:01:26.8]} 35... Bc5 {[%clk 0:00:20.8]} 36. Kf3 {[%clk
0:01:24.2]} 36... b6 {[%clk 0:00:21]} 37. Ke2 {[%clk 0:01:18.7]} 37... a5 {[%clk
0:00:20.3]} 38. Ra8 {[%clk 0:01:18.4]} 38... Re7+ {[%clk 0:00:17.9]} 39. Be3
{[%clk 0:01:16.6]} 39... Bxe3 {[%clk 0:00:16.8]} 40. fxe3 {[%clk 0:01:17.5]}
40... Re6 {[%clk 0:00:16.7]} 41. c5 {[%clk 0:01:15.4]} 41... bxc5 {[%clk
0:00:16.2]} 42. Rxa5 {[%clk 0:01:16]} 42... c4 {[%clk 0:00:16.3]} 43. Kf3 {[%clk
0:01:06.7]} 43... Rf6+ {[%clk 0:00:15.5]} 44. Kg4 {[%clk 0:00:56.6]} 44... Rg6+
{[%clk 0:00:09.6]} 45. Kf5 {[%clk 0:00:50.8]} 45... Rf6+ {[%clk 0:00:09.4]} 46.
Ke5 {[%clk 0:00:51.5]} 46... Rh6 {[%clk 0:00:08.1]} 47. Ra7+ {[%clk 0:00:51.6]}
47... Kg8 {[%clk 0:00:05.6]} 48. e4 {[%clk 0:00:47.8]} 48... Rxh3 {[%clk
0:00:05.4]} 49. Ke6 {[%clk 0:00:48.5]} 49... h6 {[%clk 0:00:05.6]} 50. e5 {[%clk
0:00:37.1]} 50... Rxc3 {[%clk 0:00:04.9]} 51. Ra8+ {[%clk 0:00:38]} 51... Kh7
{[%clk 0:00:04.6]} 52. Rc8 {[%clk 0:00:38.9]} 52... Rc1 {[%clk 0:00:04.3]} 53.
Ke7 {[%clk 0:00:09.8]} 53... c3 {[%clk 0:00:05.2]} 54. e6 {[%clk 0:00:10.3]}
54... c2 {[%clk 0:00:05.2]} 55. Rc3 {[%clk 0:00:09.4]} 55... h5 {[%clk
0:00:04.7]} 56. Rc5 {[%clk 0:00:06.9]} 56... g6 {[%clk 0:00:03.4]} 57. Rc7
{[%clk 0:00:06]} 57... Kh6 {[%clk 0:00:03.7]} 58. Rc8 {[%clk 0:00:06.3]} 58...
Kg5 {[%clk 0:00:03.7]} 59. Rc5+ {[%clk 0:00:06.4]} 59... Kg4 {[%clk 0:00:03.4]}
60. Rc4+ {[%clk 0:00:06.4]} 60... Kg5 {[%clk 0:00:03.7]} 61. Rc5+ {[%clk
0:00:06.2]} 61... Kh6 {[%clk 0:00:04.4]} 62. Rc8 {[%clk 0:00:05.1]} 62... h4
{[%clk 0:00:04.5]} 63. Rc3 {[%clk 0:00:04.8]} 63... g5 {[%clk 0:00:03.7]} 64.
Ke8 {[%clk 0:00:05.7]} 64... Kh5 {[%clk 0:00:03.6]} 65. e7 {[%clk 0:00:05.8]}
65... g4 {[%clk 0:00:02.5]} 66. Rc5+ {[%clk 0:00:06.7]} 66... Kh6 {[%clk
0:00:02.7]} 67. Rc6+ {[%clk 0:00:06.2]} 67... Kh7 {[%clk 0:00:03]} 68. Rc4
{[%clk 0:00:06.6]} 68... Kh6 {[%clk 0:00:01.4]} 69. Rxg4 {[%clk 0:00:04.3]}
69... Re1 {[%clk 0:00:01.6]} 70. Rxh4+ {[%clk 0:00:05.2]} 70... Kg7 {[%clk
0:00:01.7]} 71. Rc4 {[%clk 0:00:06.1]} 1-0

[Event "Early-Titled-Tuesday-Blitz-April-16-2024"]
[Site "Chess.com"]
[Date "2024.04.16"]
[Round "11"]
[White "ljuks68"]
[Black "VacheH009"]
[Result "1/2-1/2"]
[WhiteElo "2395"]
[BlackElo "2593"]
[TimeControl "180+1"]
[EndTime "10:13:30 PDT"]
[Termination "Game drawn - insufficient material"]

1. e4 {[%clk 0:03:00.9]} 1... e6 {[%clk 0:02:57.9]} 2. d4 {[%clk 0:03:00.2]}
2... d5 {[%clk 0:02:58.5]} 3. Nc3 {[%clk 0:02:59.6]} 3... Nf6 {[%clk 0:02:55.7]}
4. Bg5 {[%clk 0:02:59.2]} 4... Bb4 {[%clk 0:02:54.8]} 5. e5 {[%clk 0:02:59.2]}
5... h6 {[%clk 0:02:54.8]} 6. Bd2 {[%clk 0:02:59.5]} 6... Bxc3 {[%clk
0:02:54.4]} 7. bxc3 {[%clk 0:03:00.1]} 7... Ne4 {[%clk 0:02:54.9]} 8. Qg4 {[%clk
0:02:59.5]} 8... g6 {[%clk 0:02:54.4]} 9. Bd3 {[%clk 0:02:59.6]} 9... Nxd2
{[%clk 0:02:53.8]} 10. Kxd2 {[%clk 0:02:59.5]} 10... c5 {[%clk 0:02:54.5]} 11.
Nf3 {[%clk 0:02:58]} 11... Nc6 {[%clk 0:02:43.1]} 12. Qf4 {[%clk 0:02:55.5]}
12... Qa5 {[%clk 0:02:37]} 13. dxc5 {[%clk 0:02:51.1]} 13... Qxc5 {[%clk
0:02:34.6]} 14. Nd4 {[%clk 0:02:50.9]} 14... Nxd4 {[%clk 0:02:28.6]} 15. Qxd4
{[%clk 0:02:47.9]} 15... Qxd4 {[%clk 0:02:19.9]} 16. cxd4 {[%clk 0:02:47.4]}
16... Bd7 {[%clk 0:02:19.8]} 17. f4 {[%clk 0:02:40]} 17... h5 {[%clk 0:02:13.4]}
18. a4 {[%clk 0:02:35.5]} 18... O-O-O {[%clk 0:02:03.1]} 19. a5 {[%clk
0:02:33.3]} 19... Kb8 {[%clk 0:02:01.2]} 20. g3 {[%clk 0:02:32.6]} 20... h4
{[%clk 0:01:48.5]} 21. g4 {[%clk 0:02:29.9]} 21... h3 {[%clk 0:01:48.3]} 22.
Rhg1 {[%clk 0:02:28.5]} 22... a6 {[%clk 0:01:44.3]} 23. Rab1 {[%clk 0:02:23.7]}
23... Ka7 {[%clk 0:01:44.2]} 24. Rg3 {[%clk 0:02:22.7]} 24... Rc8 {[%clk
0:01:36]} 25. Bf1 {[%clk 0:02:19]} 25... Ba4 {[%clk 0:01:29.2]} 26. Rb2 {[%clk
0:02:16.1]} 26... Rh4 {[%clk 0:01:25.7]} 27. Ra3 {[%clk 0:01:46.9]} 27... Bc6
{[%clk 0:00:36.2]} 28. Be2 {[%clk 0:01:28.9]} 28... g5 {[%clk 0:00:28.3]} 29.
Ke3 {[%clk 0:01:27.1]} 29... Rg8 {[%clk 0:00:27.5]} 30. fxg5 {[%clk 0:01:17.9]}
30... Rxg5 {[%clk 0:00:28.4]} 31. Kf4 {[%clk 0:01:18]} 31... Rg7 {[%clk
0:00:27.2]} 32. Kg3 {[%clk 0:01:17.5]} 32... Rh6 {[%clk 0:00:25.7]} 33. Rf3
{[%clk 0:01:14.6]} 33... Be8 {[%clk 0:00:21.4]} 34. Rbb3 {[%clk 0:01:11.7]}
34... Ba4 {[%clk 0:00:19.6]} 35. Rb2 {[%clk 0:01:11]} 35... Rhg6 {[%clk
0:00:18.4]} 36. Rf4 {[%clk 0:01:10.1]} 36... Rh6 {[%clk 0:00:18.5]} 37. Bd3
{[%clk 0:01:08.9]} 37... Be8 {[%clk 0:00:16.2]} 38. Rb6 {[%clk 0:01:08.5]} 38...
Bc6 {[%clk 0:00:14.8]} 39. Bxa6 {[%clk 0:01:06.6]} 39... Rh8 {[%clk 0:00:08.9]}
40. Bd3 {[%clk 0:01:05.2]} 40... Rc8 {[%clk 0:00:08.4]} 41. Rb1 {[%clk
0:01:04.3]} 41... Ba4 {[%clk 0:00:07.9]} 42. Rb2 {[%clk 0:01:03.8]} 42... Rc3
{[%clk 0:00:08.4]} 43. Kxh3 {[%clk 0:01:02.5]} 43... Bxc2 {[%clk 0:00:07.8]} 44.
Rxc2 {[%clk 0:01:02.2]} 44... Rxd3+ {[%clk 0:00:08.7]} 45. Kg2 {[%clk
0:01:02.3]} 45... Ka6 {[%clk 0:00:04.7]} 46. h3 {[%clk 0:01:01.7]} 46... Kxa5
{[%clk 0:00:04.6]} 47. Rc7 {[%clk 0:01:01.8]} 47... b5 {[%clk 0:00:03.5]} 48.
Ra7+ {[%clk 0:00:59.2]} 48... Kb4 {[%clk 0:00:03.5]} 49. Raxf7 {[%clk 0:00:58]}
49... Rg8 {[%clk 0:00:03.6]} 50. Re7 {[%clk 0:00:56]} 50... Ra8 {[%clk
0:00:02.8]} 51. Rxe6 {[%clk 0:00:54.6]} 51... Ra2+ {[%clk 0:00:02.1]} 52. Rf2
{[%clk 0:00:54.6]} 52... Raa3 {[%clk 0:00:03]} 53. Rh6 {[%clk 0:00:54.3]} 53...
Rxd4 {[%clk 0:00:02.5]} 54. Re2 {[%clk 0:00:53.2]} 54... Rdd3 {[%clk 0:00:02]}
55. e6 {[%clk 0:00:52.8]} 55... Rg3+ {[%clk 0:00:02.1]} 56. Kh2 {[%clk
0:00:51.3]} 56... Rge3 {[%clk 0:00:01.7]} 57. Rxe3 {[%clk 0:00:51.2]} 57... Rxe3
{[%clk 0:00:02.6]} 58. g5 {[%clk 0:00:51.3]} 58... d4 {[%clk 0:00:03]} 59. g6
{[%clk 0:00:51.3]} 59... d3 {[%clk 0:00:03.6]} 60. g7 {[%clk 0:00:51.7]} 60...
d2 {[%clk 0:00:02.6]} 61. g8=Q {[%clk 0:00:51.5]} 61... d1=Q {[%clk 0:00:03.1]}
62. Qg4+ {[%clk 0:00:44.1]} 62... Qxg4 {[%clk 0:00:03.3]} 63. hxg4 {[%clk
0:00:44.5]} 63... Kc5 {[%clk 0:00:03.5]} 64. Rh5+ {[%clk 0:00:26.5]} 64... Kc6
{[%clk 0:00:02.6]} 65. Rh6 {[%clk 0:00:21.2]} 65... Kd6 {[%clk 0:00:03.2]} 66.
Rh5 {[%clk 0:00:16]} 66... b4 {[%clk 0:00:02.5]} 67. Rb5 {[%clk 0:00:15.4]}
67... Kxe6 {[%clk 0:00:01.7]} 68. Rxb4 {[%clk 0:00:14.9]} 68... Kf6 {[%clk
0:00:02.4]} 69. Kg2 {[%clk 0:00:14]} 69... Kg5 {[%clk 0:00:02.7]} 70. Kf2 {[%clk
0:00:13.6]} 70... Ra3 {[%clk 0:00:02.6]} 71. Kg2 {[%clk 0:00:13.9]} 71... Kh4
{[%clk 0:00:03]} 72. Kf2 {[%clk 0:00:14.2]} 72... Rg3 {[%clk 0:00:03.2]} 73. g5+
{[%clk 0:00:12.6]} 73... Kh3 {[%clk 0:00:03.8]} 74. Rb5 {[%clk 0:00:11.1]} 74...
Kh4 {[%clk 0:00:04]} 75. Rc5 {[%clk 0:00:10.1]} 75... Rxg5 {[%clk 0:00:03.8]}
76. Rc4+ {[%clk 0:00:10.5]} 76... Rg4 {[%clk 0:00:03.7]} 77. Rxg4+ {[%clk
0:00:10.8]} 77... Kxg4 {[%clk 0:00:03.9]} 1/2-1/2